Cogmind - Beta 15 @@@ ROGUE MODE // 2025.05.19 @ 19:21:01 Player: Arzon Result: Destroyed by as-30241 with Assembled Blade Performance ------------- Evolutions (0) 0 Regions Visited (0) 0 Robots Destroyed (5) 25 Value Destroyed (126) 126 Prototype IDs (0) 0 Alien Tech Used (0) 0 Bonus (0) 0 TOTAL SCORE: 151 Bonus ------- None Cogmind --------- Core Integrity 0/250 Matter 300/300 Energy 125/125 System Corruption 0% Temperature Cool (0) Movement Core (150) Ox2 Location -11/Scrapyard Parts ------- > --- POWER (1) -------- Light Ion Engine > --- PROPULSION (2) --- (None) > --- UTILITY (2) ------ Small Storage Unit > --- WEAPON (2) ------- (None) > --- INVENTORY (8) ---- (None) Peak State ------------ > --- POWER ------------ Ion Engine > --- PROPULSION ------- Aluminum Leg Aluminum Leg > --- UTILITY ---------- Small Storage Unit Improved Terrain Scanner > --- WEAPON ----------- Medium Laser Assault Rifle > --- INVENTORY -------- Light Ion Engine Light Assault Rifle [Rating: 9] Favorites ----------- Power Ion Engine Engine Ion Engine Propulsion Aluminum Leg Leg Aluminum Leg Utility Small Storage Unit Device Improved Terrain Scanner Storage Small Storage Unit Weapon Medium Laser Energy Gun Medium Laser Ballistic Gun Assault Rifle Build | -11 ------- Run | Yrd Slots Evolved . | . Power . | . Propulsion . | . Utility . | . Weapon . | . Parts Attached 9 | 9 Power 2 | 2 Engine 2 | 2 Core . | . Reactor . | . Propulsion 2 | 2 Treads . | . Leg 2 | 2 Wheel . | . Hover . | . Flight . | . Utility 2 | 2 Device 1 | 1 Storage 1 | 1 Processor . | . Hackware . | . Protection . | . Artifact . | . Weapon 3 | 3 Energy Gun 1 | 1 Energy Cannon . | . Ballistic Gun 2 | 2 Ballistic Cannon . | . Launcher . | . Special Weapon . | . Impact Weapon . | . Slashing Weapon . | . Piercing Weapon . | . Special Melee Weapon . | . Unidentified Prototypes . | . Parts Lost 7 | 7 Power 1 | 1 Propulsion 2 | 2 Utility 1 | 1 Weapon 3 | 3 Highest Loss Streak 5 | 5 To Critical Strikes . | . Average Backups 1 | 1 Power . | . Propulsion . | . Utility . | . Weapon . | . Tool/Special . | . Unused Backups . | . Power . | . Propulsion . | . Utility . | . Weapon . | . Tool/Special . | . Average Slot Usage (%) . | . Peak Build Rating 9 | 9 Average Rating 8 | 8 On Entrance . | . Naked Turns . | . Heaviest Build 15 | 15 Greatest Support 20 | 20 Greatest Overweight (x) 4 | 4 Average Overweight (x) . | . Largest Inventory Capacity 8 | 8 Average Capacity 7 | 7 Most Carried 2 | 2 Average Carried 1 | 1 Final Capacity 8 | 8 Final Carried . | . Class Distribution -------------------- None Dominant Class ---------------- None Resources | -11 ----------- Run | Yrd Matter Collected 321 | 321 Remotely . | . Salvage Created 171 | 171 Parts 6 | 6 Haulers Intercepted . | . Recyclers Shooed . | . Parts Field Recycled . | . Retrieved Matter . | . Parts Self-Destructed . | . Prevented . | . Kills | -11 ------- Run | Yrd Combat Hostiles Destroyed 6 | 6 Guns 6 | 6 Classes Destroyed 4 | 4 Tunneler 2 | 2 Recycler 1 | 1 Demolisher 2 | 2 Assembled 4 | 4 Best Kill Streak 4 | 4 Combat Bots Only 4 | 4 Max Kills in Single Turn 2 | 2 Gunslinging . | . Exploded . | . Melee . | . Uniques/NPCs Destroyed . | . Combat | -11 -------- Run | Yrd Hostile Shots Fired 60 | 60 Missed 19 | 19 Hits 41 | 41 Melee 5 | 5 Projectile 36 | 36 AOE 9 | 9 Damage Taken 866 | 866 Core 279 | 279 Absorbed by Shields . | . Core Remaining (%) . | . Volleys Fired 25 | 25 Largest 2 | 2 Hottest 70 | 70 Shots Fired 47 | 47 Gun 47 | 47 Cannon . | . Launcher . | . Special . | . Kinetic 22 | 22 Thermal 25 | 25 Explosive . | . Electromagnetic . | . Robot Hit Streak 6 | 6 Robot Miss Streak 3 | 3 Penetration Max . | . Secondary Targets 1 | 1 Max Gunslinging Chain 1 | 1 Shots Hit Robots 26 | 26 Core Hits 15 | 15 Critical Kills . | . Critical Parts Destroyed . | . Critical Strikes 2 | 2 Burn 2 | 2 Melee Attacks . | . Impact . | . Slashing . | . Piercing . | . Sneak Attacks . | . Combat Hostiles . | . Follow-up Attacks . | . Damage Inflicted 339 | 339 Guns 337 | 337 Cannons . | . Explosions . | . Melee . | . Ramming 2 | 2 Kinetic 111 | 111 Thermal 226 | 226 Explosive . | . Electromagnetic . | . Impact . | . Slashing . | . Piercing . | . Highest Corruption . | . Average Corruption . | . Corruption Purged . | . Corruption Blocked . | . Overload Shots . | . Overflow Damage . | . Projectiles . | . Explosions . | . Melee . | . Knockbacks . | . Impact . | . Kinetic . | . Secondary . | . Self-Inflicted Damage 1 | 1 Shots . | . Rammed 2 | 2 Targets Rammed 2 | 2 Kicked . | . Crushed . | . Highest Temperature 110 | 110 Average Temperature 34 | 34 Received Heat Transfer . | . Siege Activations . | . Martial Activations . | . Shielding Activations . | . Robots Disrupted . | . Combat Hostiles . | . Robots Corrupted . | . Combat Hostiles . | . Parts Fried . | . Impact Corruptions . | . Robots Melted . | . Combat Hostiles . | . Parts Melted 1 | 1 Heat Transferred 814 | 814 Parts Sabotaged . | . Parts Stolen . | . Parts Stripped . | . Power Chain Reactions . | . Alert | -11 ------- Run | Yrd Maximum Alert Level . | . Low Security (%) 100 | 100 Level 1 . | . Level 2 . | . Level 3 . | . Level 4 . | . Level 5 . | . High Security . | . Max Security . | . Peak Influence 50 | 50 Initial . | . Average . | . Influence Increases 65 | 65 Destroy 0b10 Robot/C 40 | 40 Destroy 0b10 Robot/NC 15 | 15 Destroy Leader 10 | 10 Influence Decreases 65 | 65 Time Decay 25 | 25 Lost Part 40 | 40 Squads Dispatched . | . Investigation . | . Extermination . | . Reinforcement . | . Assault . | . Garrison . | . Intercept . | . Searches Triggered . | . Construction Impeded . | . Haulers Reinforced . | . Active Scanning Responses . | . Cargo Convoy Interrupts . | . Stealth | -11 --------- Run | Yrd Distress Signals . | . Communications Jammed . | . Distress Signals . | . Times Spotted 25 | 25 Peak Tracking Total 20 | 20 Tactical Retreats 1 | 1 Traps | -11 ------- Run | Yrd Traps Triggered . | . Indirectly . | . Trap Hack Attempts . | . Triggered . | . Disarmed . | . Reprogrammed . | . Reused . | . Traps Extracted . | . Installed . | . Triggered . | . Machines | -11 ---------- Run | Yrd Machines Disabled . | . Max in Single Turn . | . Machines Repaired . | . Machines Dismantled . | . Machines Sabotaged . | . Overloaded Fab Kills . | . Hacking | -11 --------- Run | Yrd Machines Accessed . | . Terminals . | . Fabricators . | . Repair Stations . | . Recycling Units . | . Scanalyzers . | . Garrison Access . | . Total Hacks . | . Successful . | . Failed . | . Catastrophic . | . Database Lockouts . | . Manual . | . Terminals . | . Fabricators . | . Repair Stations . | . Recycling Units . | . Scanalyzers . | . Garrison Access . | . Terminal Hacks . | . Fabricator Hacks . | . Repair Station Hacks . | . Recycling Unit Hacks . | . Scanalyzer . | . Garrison Access Hacks . | . Unauthorized Hacks . | . Terminals . | . Fabricators . | . Repair Stations . | . Recycling Units . | . Scanalyzers . | . Garrison Access . | . Data Cores Recovered . | . Used . | . Hacking Detections . | . Full Trace Events . | . Feedback Events . | . Feedback Blocked . | . Robot Schematics Acquired . | . Robots Built . | . Authchips . | . Time . | . Total Robot Build Rating . | . Part Schematics Acquired . | . Parts Built . | . Authchips . | . Time . | . Total Part Build Rating . | . Parts Repaired . | . Time . | . Parts Recycled . | . Recycled Matter . | . Retrieved Matter . | . Retrieved Components . | . Parts Scanalyzed . | . Part Schematics Acquired . | . Parts Damaged . | . Bothacking | -11 ------------ Run | Yrd Used RIF Installer . | . Robots Hacked . | . Non-combat . | . Combat . | . Robot Hacks Applied . | . Relay Couplers Released . | . Fabnet Peak Effective % . | . Robots Rewired . | . Allies Hacked . | . Hacks Repelled . | . Allies | -11 -------- Run | Yrd Total Allies . | . Largest Group . | . Highest-Rated Group . | . Highest-Rated Ally . | . Total Orders . | . Ally Attacks . | . Total Damage . | . Kills . | . Allies Corrupted . | . Allies Melted . | . Intel | -11 ------- Run | Yrd Active Infowar (turns) 1082 | 1082 Terrain 1082 | 1082 Robot Analysis Total . | . Derelict Logs Recovered . | . Drone Launches . | . Drone Recoveries . | . Exploration | -11 ------------- Run | Yrd Turns Passed 1210 | 1210 Spaces Moved 119 | 119 Core 15 | 15 Treads . | . Legs 104 | 104 Wheels . | . Hover . | . Flight . | . Fastest Speed 50 | 50 Average Speed 126 | 126 Slowest Speed 250 | 250 Overloaded Moves . | . Propulsion Burnouts . | . Robots Hopped . | . Potential Cave-ins . | . Cave-ins Triggered . | . Exploration Rate (%) 14 | 14 Regions Visited . Branch Regions . Pre-discovered Areas . | . Known Exits Taken . | . Unknown Exits Taken . | . Scrap Searched . | . Spaces Dug . | . Terrain Destroyed . | . Melee . | . Projectile . | . AOE . | . Terrain Rammed . | . Walls Destroyed . | . Machines Disabled . | . Actions | -11 --------- Run | Yrd Total 1128 | 1128 Wait 970 | 970 Move 119 | 119 Hop . | . Pick Up . | . Fast Attach 8 | 8 Attach 2 | 2 Detach 1 | 1 Swap 1 | 1 Drop . | . Fire 25 | 25 Melee . | . Ram 2 | 2 Kick . | . Crush . | . Escape Stasis . | . Rewire . | . Trap . | . Miscellaneous . | . Route ------- -11/Scrapyard (discovered 1 exit: [*Mat]) History --------- Turn | Location | Event 15 | -11/Scrapyard | Discovered new exit (range 16) 1119 | -11/Scrapyard | Assembled infested the area 1172 | -11/Scrapyard | Core integrity fell below 50% 1194 | -11/Scrapyard | Lost 5 parts (1p2n1u1w) 1204 | -11/Scrapyard | Core integrity fell below 20% 1211 | -11/Scrapyard | Destroyed by as-30241 with Assembled Blade Last Messages --------------- 01154_ as-54395 destroyed. 01155_ Assault Rifle destroyed. 01156_ K-01 Serf collects debris. 01159_ as-90946 destroyed. 01160_ The unstable cave ceiling collapses. 01161_ K-01 Serf collects debris. 01161_ Ion Engine destroyed. 01163_ Imp. Terrain Scanner destroyed. 01164_ K-01 Serf collects debris. 01170_ The unstable cave ceiling collapses. 01172_ K-01 Serf collects debris. 01188_ The unstable cave ceiling collapses. 01189_ as-89462 suffers critical hit (Burn). 01190_ The unstable cave ceiling collapses. 01192_ as-89462 destroyed. 01198_ as-25963 destroyed. 01201_ Acquired 10 matter. 01205_ Lgt. Assault Rifle destroyed. 01205_ Med. Laser destroyed. 01205_ Slammed into as-30241. Map ----- +----------------------------------------------------+ | ????###?#?#?? " ??#???#??????????????????????? | | ??#?#?#??????? "????##??????????#???????????????? | | ???#?#??#??#??" ????###?#??###????????????????? | | ???????????## ?????##??##?????????????????????? | | ?????????####?# ????#???????#???????????????????? | | #?#??#?### ?# ######?#?????#???????????????????? | | ???#???# #=%# #??#?????#??????????????????? | | #???#??# # |# ?#??#?#???#??????????????????? | | ????#?## ?? ?#??#?#?#??????????????????? | | ????##?# #=%#### ##??#??????????????????????? | | ??????????# #??##???#??##????????????? | | ????#?????##### ##?#????????????????????? | | ?????###?????####### ???##?#????????????????? | | #?#??##???#??###?### % # ######?????????????????? | | #??#??#??##?###????# #?#?#??##??????????????? | | ??##????????##???### # ##????#????????????????? | | ??#?#???????###?##? ????#?#???????????????? | | ?##???##??#??#?#?### ##????#?#??????????????? | | ???#????????#???### ## ##???##???????????????? | | ???????????#??##??# #???#???#?????????????? | | ??????#??###?####?# # ##?????#####??????????? | | ???????#???####?### ##?#???###???????????? | | ?????#??#?##????#?## # # ####?#??#?#??????????? | | ??????????#???###### #??##?????????????? | | ????????##??#?# % ####?#?#??????????? | | ??????????????# #% #@ #?#?? ???????????? | | ????????#?????# a ##????????????????? | | ????????????#?# ##??#? ???????????? | | ????????????### ##?#????? ?????????? | | ????????????### # ####?#?#??????????????? | | ???????????########### %############?????????????? | | ??????????###?#???##?# #? #? ???????????? | | ?????????#???##???#??# # # ????????????? | | ??????????##??##???#?# #?#???????????? | | ?????????##?#??#??##?# # # ???????????? | | ?????????#?####?##??## # #?????????????? | | ????????##??#?#???#### ############?????????????? | | ???#?############## % #??###????? ??????????? | | ?????# ##??# #####?????????????????? | | ????## #???# #########?? ??????????? | | ?????# = ##### ?????????? | | ?????# =! ??????????? | | ?????# = =* ########## #??????????? | | ?????#= ##### < #?#??#???? ???????????? | | ?????# #???# ##?#?#?#?#????????????? | | ?????#! = #???##########?###?? ?????????????? | | ?????#### ####??#?#???##?#?#????????????????????? | | ???????????#?#?#???###???#?###??#????????????????? | | ???????????#????#?????#??##????#??#??????????????? | | ??????????#???##???????#?????????????????????????? | +----------------------------------------------------+ Best States ------------- Heat Dissipation 25 Energy Generation 10 Energy Capacity 250 Matter Stores 300 Matter Capacity 300 Sight Range 16 Terrain Scan Range 16 Terrain Scan Density 10 Evasion (%) 55 Item Schematics ----------------- None Robot Schematics ------------------ None Fabricated ------------ Nothing Repaired ---------- Nothing Alien Tech Used ----------------- None Achievements -------------- Curiosity Killed The Cat Challenges ------------ None Game ------ Seed GuidedElectronWand Manual? 0 Play Time 00:28:30 Cumulative 29.7 hours Start 2025.05.19 @ 18:53:28 End 2025.05.19 @ 19:21:01 Sessions 0 Manual Loads 0 Difficulty Rogue Special Mode None Game No. 30 Rogue 30 Adventurer 0 Explorer 0 Win Type - Total 0 Types 0/0/0/0/0/0/0/0/0/0 Lore% 21 Gallery% 20 Achievement% 23 Wizard Run 0 Options --------- Layout 1 ASCII 0 Keyboard 0 Movement Numpad Keybinds 0 Fullscreen 2 Font 48/Smallcaps Map View 50x35 Zoom Use 0% Tactical HUD 1 Map Filters NONE Filters NONE Steam 1 RUN: 395b98a6-9268-4833-b796-c7ea24ed3291